[Event "Marshall CC Premier 04-2025"]
[Site "New York"]
[Date "2025.04.07"]
[Round "5.1"]
[White "Hoffman, Luc"]
[Black "Chasin, Nico"]
[Result "0-1"]
[Annotator "RC"]
[ECO "C41"]
[WhiteElo "2211"]
[BlackElo "2435"]
[PlyCount "76"]
[EventDate "2025.01.03"]
[EventType "swiss"]
[EventCountry "USA"]
[SourceTitle "playchess.com"]
[Source "ChessBase"]
[SourceQuality "1"]
[TimeControl "5400+30"]

1. e4 {[%emt 0:00:05]} d6 {[%emt 0:01:07]} 2. d4 {[%emt 0:00:29]} Nf6 {[%emt 0:00:02]} 3. Nc3 {[%emt 0:00:12]} e5 {[%emt 0:00:04]} 4. Nf3 {[%emt 0:00:58]} Nbd7 {[%emt 0:00:02]} 5. g4 {[%emt 0:01:58]} Nxg4 {[%emt 0:00:54]} 6. Rg1 {[%emt 0:00:07]} Ngf6 {[%emt 0:00:06]} 7. Be3 {[%emt 0:02:46]} g6 {[%emt 0:00:58]} 8. Bc4 {[%emt 0:04:23]} exd4 {[%emt 0:02:58]} 9. Nxd4 {[%emt 0:09:23]} Ne5 {[%emt 0:00:27]} 10. Be2 {[%emt 0:01:11]} Bg7 {[%emt 0:00:45]} 11. f4 {[%emt 0:02:56]} Nc6 {[%emt 0:00:02]} 12. Qd2 {[%emt 0:08:24]} O-O {[%emt 0:03:09]} 13. O-O-O {[%emt 0:00:10]} Bd7 {[%emt 0:02:03]} 14. h4 {[%emt 0:02:26]} Re8 {[%emt 0:00:57]} 15. Bf3 {[%emt 0:07:10]} Nxd4 {[%emt 0:00:19]} 16. Bxd4 {[%emt 0:00:07]} Bc6 {[%emt 0:00:08]} 17. h5 {[%emt 0:06:16]} Bxe4 {[%emt 0:04:19]} 18. Bxe4 {[%emt 0:02:45]} Nxe4 {[%emt 0:00:14]} 19. Nxe4 {[%emt 0:00:03]} Rxe4 {[%emt 0:00:39]} 20. Bxg7 {[%emt 0:00:05]} Kxg7 {[%emt 0:00:04]} 21. Qc3+ {[%emt 0:00:03]} Kf8 {[%emt 0:01:34]} 22. Qh8+ {[%emt 0:10:49]} Ke7 {[%emt 0:00:15]} 23. Qc3 {[%emt 0:05:48]} Kd7 {[%emt 0:04:05]} 24. Qh3+ {[%emt 0:08:30]} Re6 {[%emt 0:11:38]} 25. f5 {[%emt 0:01:25]} gxf5 {[%emt 0:01:30]} 26. Qxf5 {[%emt 0:00:04]} Qf8 {[%emt 0:00:24]} 27. Qb5+ {[%emt 0:01:57]} Kc8 {[%emt 0:04:01]} 28. Qf5 {[%emt 0:01:41]} b6 {[%emt 0:08:14]} 29. Qf3 {[%emt 0:04:57]} Kd7 {[%emt 0:00:42]} 30. Kb1 {[%emt 0:03:09]} Rae8 {[%emt 0:01:18]} 31. Rdf1 {[%emt 0:01:33]} f5 {[%emt 0:01:20]} 32. a4 {[%emt 0:00:42]} Re5 {[%emt 0:00:10]} 33. Qf4 {[%emt 0:02:03]} R8e6 {[%emt 0:00:42]} 34. Qg5 {[%emt 0:03:29]} f4 {[%emt 0:03:57]} 35. Qg4 {[%emt 0:02:15]} Qf5 {[%emt 0:00:36]} 36. Qg7+ {[%emt 0:02:21]} Re7 {[%emt 0:00:06]} 37. h6 {[%emt 0:01:58]} f3 {[%emt 0:00:12]} 38. Qg3 {[%emt 0:02:17]} Re2 {[%emt 0:00:02]} 0-1

[Event "Marshall CC Premier 04-2025"]
[Site "New York"]
[Date "2025.04.07"]
[Round "5.2"]
[White "Tse, Whitney"]
[Black "Muthukumar, Haari"]
[Result "0-1"]
[Annotator "RC"]
[ECO "D31"]
[WhiteElo "1951"]
[BlackElo "2197"]
[PlyCount "70"]
[EventDate "2025.01.03"]
[EventType "swiss"]
[EventCountry "USA"]
[SourceTitle "playchess.com"]
[Source "ChessBase"]
[SourceQuality "1"]
[TimeControl "5400+30"]

1. d4 {[%emt 0:00:01]} e6 {[%emt 0:04:03]} 2. c4 {[%emt 0:00:15]} a6 {[%emt 0:00:31]} 3. Nc3 {[%emt 0:00:17]} d5 {[%emt 0:00:06]} 4. cxd5 {[%emt 0:01:29]} exd5 {[%emt 0:00:18]} 5. Qb3 {[%emt 0:00:05]} Nf6 {[%emt 0:01:43]} 6. Bg5 {[%emt 0:01:00]} c6 {[%emt 0:00:13]} 7. Nf3 {[%emt 0:01:07]} Be7 {[%emt 0:07:24]} 8. e3 {[%emt 0:03:48]} O-O {[%emt 0:01:31]} 9. Bd3 {[%emt 0:02:21]} Qc7 {[%emt 0:05:17]} 10. Qc2 {[%emt 0:03:47]} g6 {[%emt 0:08:23]} 11. Bxf6 {[%emt 0:01:01]} Bxf6 {[%emt 0:00:03]} 12. Nxd5 {[%emt 0:00:08]} Qa5+ {[%emt 0:00:04]} 13. Nc3 {[%emt 0:00:03]} Bg4 {[%emt 0:07:30]} 14. Nd2 {[%emt 0:04:23]} Bg7 {[%emt 0:01:32]} 15. O-O {[%emt 0:02:53]} Nd7 {[%emt 0:00:10]} 16. Nce4 {[%emt 0:12:19]} Rad8 {[%emt 0:01:30]} 17. Nc4 {[%emt 0:06:04]} Qc7 {[%emt 0:00:56]} 18. Rac1 {[%emt 0:15:45]} h6 {[%emt 0:02:16]} 19. f3 {[%emt 0:10:48]} Be6 {[%emt 0:01:09]} 20. Ng3 {[%emt 0:01:55]} Nb6 {[%emt 0:07:07]} 21. Qf2 {[%emt 0:07:33]} Rfe8 {[%emt 0:03:51]} 22. Rfd1 {[%emt 0:04:04]} Nd5 {[%emt 0:00:49]} 23. Be4 {[%emt 0:04:06]} Nb6 {[%emt 0:05:42]} 24. Bd3 {[%emt 0:01:15]} h5 {[%emt 0:01:00]} 25. Ne4 {[%emt 0:01:13]} Nd5 {[%emt 0:01:54]} 26. Bb1 {[%emt 0:02:56]} Bf5 {[%emt 0:04:04]} 27. Nc5 {[%emt 0:05:46]} Bxb1 {[%emt 0:02:10]} 28. Rxb1 {[%emt 0:00:02]} b5 {[%emt 0:00:30]} 29. e4 {[%emt 0:00:57]} Nf4 {[%emt 0:11:27]} 30. Ne5 {[%emt 0:02:16]} Bxe5 {[%emt 0:00:40]} 31. dxe5 {[%emt 0:00:01]} Rxe5 {[%emt 0:02:00]} 32. Nxa6 {[%emt 0:00:45]} Qe7 {[%emt 0:02:17]} 33. Rxd8+ {[%emt 0:00:37]} Qxd8 {[%emt 0:00:02]} 34. Nb4 {[%emt 0:00:02]} Rg5 {[%emt 0:00:28]} 35. Nxc6 {[%emt 0:03:38]} Nh3+ {[%emt 0:19:20]} 0-1

[Event "Marshall CC Premier 04-2025"]
[Site "New York"]
[Date "2025.04.07"]
[Round "5.3"]
[White "Hebbar, Eshaan"]
[Black "Dong, Kyle Qiyu"]
[Result "1-0"]
[Annotator "RC"]
[ECO "D38"]
[WhiteElo "2175"]
[BlackElo "2006"]
[PlyCount "85"]
[EventDate "2025.01.03"]
[EventType "swiss"]
[EventCountry "USA"]
[SourceTitle "playchess.com"]
[Source "ChessBase"]
[SourceQuality "1"]
[TimeControl "5400+30"]

1. d4 {[%emt 0:00:03]} d5 {[%emt 0:04:40]} 2. c4 {[%emt 0:00:07]} e6 {[%emt 0:00:06]} 3. Nc3 {[%emt 0:00:12]} Nf6 {[%emt 0:00:15]} 4. Nf3 {[%emt 0:00:12]} Bb4 {[%emt 0:00:04]} 5. cxd5 {[%emt 0:00:11]} exd5 {[%emt 0:00:02]} 6. Bg5 {[%emt 0:00:10]} Nbd7 {[%emt 0:00:02]} 7. e3 {[%emt 0:00:54]} c5 {[%emt 0:00:12]} 8. dxc5 {[%emt 0:05:36]} Qa5 {[%emt 0:00:02]} 9. Bxf6 {[%emt 0:01:23]} Nxf6 {[%emt 0:00:18]} 10. Qb3 {[%emt 0:05:09]} Ne4 {[%emt 0:05:15]} 11. Rc1 {[%emt 0:00:23]} O-O {[%emt 0:02:07]} 12. a3 {[%emt 0:08:14]} Bxc3+ {[%emt 0:03:33]} 13. bxc3 {[%emt 0:00:03]} Qxc5 {[%emt 0:00:44]} 14. Be2 {[%emt 0:06:09]} Bg4 {[%emt 0:06:44]} 15. h3 {[%emt 0:02:36]} Bh5 {[%emt 0:01:25]} 16. g4 {[%emt 0:22:48]} Bg6 {[%emt 0:00:10]} 17. O-O {[%emt 0:00:40]} Rfe8 {[%emt 0:01:00]} 18. Qb2 {[%emt 0:09:59]} Rad8 {[%emt 0:24:10]} 19. c4 {[%emt 0:01:47]} b6 {[%emt 0:03:26]} 20. cxd5 {[%emt 0:01:41]} Qxd5 {[%emt 0:00:02]} 21. Rc7 {[%emt 0:00:34]} Qa5 {[%emt 0:08:13]} 22. Rfc1 {[%emt 0:07:09]} Nf6 {[%emt 0:05:51]} 23. Bb5 {[%emt 0:03:46]} Rf8 {[%emt 0:01:14]} 24. Nd4 {[%emt 0:00:09]} a6 {[%emt 0:00:28]} 25. Bf1 {[%emt 0:00:04]} Qg5 {[%emt 0:02:22]} 26. Qxb6 {[%emt 0:08:27]} Nd5 {[%emt 0:01:14]} 27. Qc5 {[%emt 0:00:26]} Qh6 {[%emt 0:00:14]} 28. Rc6 {[%emt 0:00:26]} Nxe3 {[%emt 0:11:28]} 29. g5 {[%emt 0:00:10]} Qh5 {[%emt 0:00:44]} 30. fxe3 {[%emt 0:00:08]} Be4 {[%emt 0:01:14]} 31. Rd6 {[%emt 0:01:23]} Rde8 {[%emt 0:03:28]} 32. Rd7 {[%emt 0:06:25]} Qh4 {[%emt 0:03:16]} 33. Ne2 {[%emt 0:00:11]} Bf3 {[%emt 0:06:26]} 34. Rd4 {[%emt 0:00:38]} Qh5 {[%emt 0:00:43]} 35. Ng3 {[%emt 0:01:41]} Qg6 {[%emt 0:00:03]} 36. Rd6 {[%emt 0:00:19]} f6 {[%emt 0:00:27]} 37. h4 {[%emt 0:00:22]} Kh8 {[%emt 0:00:42]} 38. Bd3 {[%emt 0:00:10]} Qf7 {[%emt 0:00:03]} 39. Qf5 {[%emt 0:00:18]} Qg8 {[%emt 0:00:45]} 40. Qxf3 {[%emt 0:00:55]} fxg5 {[%emt 0:00:06]} 41. Qd5 {[%emt 0:00:58]} Qxd5 {[%emt 0:00:19]} 42. Rxd5 {[%emt 0:00:01]} gxh4 {[%emt 0:00:01]} 43. Nf1 {[%emt 0:00:12]} 1-0

[Event "Marshall CC Premier 04-2025"]
[Site "New York"]
[Date "2025.04.07"]
[Round "5.4"]
[White "Marzouq, Chowdhury"]
[Black "Schaefer, Sasha Milo"]
[Result "1/2-1/2"]
[Annotator "RC"]
[ECO "D02"]
[WhiteElo "1983"]
[BlackElo "2050"]
[PlyCount "84"]
[EventDate "2025.01.03"]
[EventType "swiss"]
[EventCountry "USA"]
[SourceTitle "playchess.com"]
[Source "ChessBase"]
[SourceQuality "1"]
[TimeControl "5400+30"]

1. d4 {[%emt 0:04:43]} d5 {[%emt 0:00:01]} 2. Nf3 {[%emt 0:00:07]} Nf6 {[%emt 0:00:03]} 3. Bf4 {[%emt 0:00:07]} e6 {[%emt 0:00:07]} 4. e3 {[%emt 0:00:04]} c5 {[%emt 0:00:18]} 5. Nbd2 {[%emt 0:00:11]} Qb6 {[%emt 0:00:16]} 6. Rb1 {[%emt 0:00:05]} Nc6 {[%emt 0:01:03]} 7. c3 {[%emt 0:00:07]} Nh5 {[%emt 0:00:45]} 8. Be5 {[%emt 0:03:45]} cxd4 {[%emt 0:17:25]} 9. exd4 {[%emt 0:00:50]} f6 {[%emt 0:00:37]} 10. Bg3 {[%emt 0:00:22]} Nxg3 {[%emt 0:01:33]} 11. hxg3 {[%emt 0:00:03]} g6 {[%emt 0:04:23]} 12. Bd3 {[%emt 0:00:23]} Bg7 {[%emt 0:00:49]} 13. Rxh7 {[%emt 0:04:16]} Kf7 {[%emt 0:03:22]} 14. Rxh8 {[%emt 0:01:21]} Bxh8 {[%emt 0:00:06]} 15. Nh4 {[%emt 0:00:58]} f5 {[%emt 0:00:14]} 16. Ndf3 {[%emt 0:19:06]} Bf6 {[%emt 0:05:31]} 17. Qd2 {[%emt 0:00:21]} Kg7 {[%emt 0:01:19]} 18. Ng5 {[%emt 0:06:15]} Qd8 {[%emt 0:02:17]} 19. Nhf3 {[%emt 0:03:23]} e5 {[%emt 0:03:03]} 20. dxe5 {[%emt 0:00:22]} Nxe5 {[%emt 0:00:14]} 21. Nxe5 {[%emt 0:00:11]} Bxe5 {[%emt 0:02:28]} 22. Nf3 {[%emt 0:01:13]} Bf6 {[%emt 0:00:25]} 23. Qf4 {[%emt 0:02:43]} Qb6 {[%emt 0:06:49]} 24. Kf1 {[%emt 0:02:31]} Bd7 {[%emt 0:01:29]} 25. g4 {[%emt 0:06:26]} fxg4 {[%emt 0:04:01]} 26. Ne5 {[%emt 0:02:08]} g5 {[%emt 0:03:31]} 27. Qg3 {[%emt 0:04:37]} Qd6 {[%emt 0:02:22]} 28. Nxd7 {[%emt 0:00:40]} Qxd7 {[%emt 0:00:16]} 29. Be2 {[%emt 0:01:02]} Rh8 {[%emt 0:02:19]} 30. Kg1 {[%emt 0:00:58]} Qf5 {[%emt 0:12:04]} 31. Qc7+ {[%emt 0:04:44]} Kg6 {[%emt 0:03:38]} 32. Rd1 {[%emt 0:01:40]} Be5 {[%emt 0:08:21]} 33. Qc5 {[%emt 0:04:13]} Qf4 {[%emt 0:04:02]} 34. Bd3+ {[%emt 0:02:01]} Kf6 {[%emt 0:00:20]} 35. Kf1 {[%emt 0:00:52]} g3 {[%emt 0:09:48]} 36. Qxa7 {[%emt 0:10:31]} gxf2 {[%emt 0:02:33]} 37. Qb6+ {[%emt 0:00:46]} Bd6 {[%emt 0:00:31]} 38. Ke2 {[%emt 0:01:46]} Re8+ {[%emt 0:00:19]} 39. Kf1 {[%emt 0:00:11]} Rh8 {[%emt 0:00:14]} 40. Ke2 {[%emt 0:00:19]} Re8+ {[%emt 0:00:52]} 41. Kf1 {[%emt 0:00:04]} Rh8 {[%emt 0:00:12]} 42. Ke2 {[%emt 0:04:14]} Re8+ {[%emt 0:00:45]} 1/2-1/2

[Event "Marshall CC Premier 04-2025"]
[Site "New York"]
[Date "2025.04.07"]
[Round "5.5"]
[White "Knowles, Chase"]
[Black "Shen, Leo Xiaohang"]
[Result "1-0"]
[Annotator "RC"]
[ECO "D45"]
[WhiteElo "1968"]
[BlackElo "1998"]
[PlyCount "133"]
[EventDate "2025.01.03"]
[EventType "swiss"]
[EventCountry "USA"]
[SourceTitle "playchess.com"]
[Source "ChessBase"]
[SourceQuality "1"]
[TimeControl "5400+30"]

1. Nf3 {[%emt 0:00:01]} d5 {[%emt 0:00:02]} 2. c4 {[%emt 0:00:12]} c6 {[%emt 0:00:01]} 3. e3 {[%emt 0:00:05]} Nf6 {[%emt 0:00:06]} 4. Nc3 {[%emt 0:00:05]} e6 {[%emt 0:00:03]} 5. b3 {[%emt 0:00:03]} Bd6 {[%emt 0:00:06]} 6. Bb2 {[%emt 0:00:09]} O-O {[%emt 0:00:04]} 7. Qc2 {[%emt 0:00:17]} Nbd7 {[%emt 0:00:20]} 8. Be2 {[%emt 0:00:19]} Re8 {[%emt 0:00:12]} 9. O-O {[%emt 0:01:49]} Qe7 {[%emt 0:00:47]} 10. d4 {[%emt 0:00:36]} b6 {[%emt 0:00:15]} 11. cxd5 {[%emt 0:01:15]} exd5 {[%emt 0:00:15]} 12. Rac1 {[%emt 0:00:56]} Ne4 {[%emt 0:01:22]} 13. Nxe4 {[%emt 0:05:29]} dxe4 {[%emt 0:00:07]} 14. Nd2 {[%emt 0:01:28]} Bb7 {[%emt 0:01:04]} 15. Nc4 {[%emt 0:01:52]} Bc7 {[%emt 0:00:30]} 16. Rfd1 {[%emt 0:01:38]} Rac8 {[%emt 0:02:31]} 17. Bg4 {[%emt 0:01:45]} Rcd8 {[%emt 0:01:04]} 18. h3 {[%emt 0:08:31]} c5 {[%emt 0:13:34]} 19. Bxd7 {[%emt 0:06:36]} Rxd7 {[%emt 0:00:22]} 20. dxc5 {[%emt 0:04:47]} Rxd1+ {[%emt 0:01:52]} 21. Qxd1 {[%emt 0:01:18]} bxc5 {[%emt 0:00:42]} 22. Qg4 {[%emt 0:01:41]} f6 {[%emt 0:00:57]} 23. Ba3 {[%emt 0:01:22]} Rd8 {[%emt 0:01:15]} 24. Rd1 {[%emt 0:03:23]} Rd3 {[%emt 0:05:00]} 25. Rxd3 {[%emt 0:04:54]} exd3 {[%emt 0:00:04]} 26. Qf5 {[%emt 0:00:51]} Qd8 {[%emt 0:05:13]} 27. Qxc5 {[%emt 0:02:29]} h6 {[%emt 0:01:32]} 28. Qd4 {[%emt 0:02:17]} Qxd4 {[%emt 0:01:24]} 29. exd4 {[%emt 0:00:02]} Bf4 {[%emt 0:00:41]} 30. Bb4 {[%emt 0:00:39]} Kf7 {[%emt 0:04:32]} 31. g3 {[%emt 0:06:07]} Bc7 {[%emt 0:00:10]} 32. Kf1 {[%emt 0:01:29]} Ke6 {[%emt 0:00:29]} 33. Ne3 {[%emt 0:00:39]} f5 {[%emt 0:01:15]} 34. Bf8 {[%emt 0:04:27]} g5 {[%emt 0:05:12]} 35. d5+ {[%emt 0:09:01]} Bxd5 {[%emt 0:03:34]} 36. Nxd5 {[%emt 0:02:05]} Kxd5 {[%emt 0:00:03]} 37. Bxh6 {[%emt 0:00:09]} g4 {[%emt 0:01:35]} 38. h4 {[%emt 0:01:36]} Be5 {[%emt 0:00:22]} 39. Ke1 {[%emt 0:01:00]} Bc3+ {[%emt 0:00:15]} 40. Bd2 {[%emt 0:00:29]} Bd4 {[%emt 0:00:16]} 41. Be3 {[%emt 0:00:31]} Bc3+ {[%emt 0:00:02]} 42. Kd1 {[%emt 0:00:11]} a6 {[%emt 0:00:03]} 43. a3 {[%emt 0:00:42]} Ke4 {[%emt 0:00:22]} 44. h5 {[%emt 0:01:33]} Ke5 {[%emt 0:00:18]} 45. b4 {[%emt 0:01:19]} Kf6 {[%emt 0:00:31]} 46. Bh6 {[%emt 0:01:39]} Kf7 {[%emt 0:00:46]} 47. Bd2 {[%emt 0:04:34]} Bd4 {[%emt 0:00:25]} 48. Be3 {[%emt 0:00:05]} Bc3 {[%emt 0:00:03]} 49. Bc5 {[%emt 0:00:05]} Kf6 {[%emt 0:02:05]} 50. a4 {[%emt 0:00:34]} Kg5 {[%emt 0:00:18]} 51. a5 {[%emt 0:01:34]} Be5 {[%emt 0:03:00]} 52. Kd2 {[%emt 0:01:38]} Kxh5 {[%emt 0:01:55]} 53. b5 {[%emt 0:00:23]} axb5 {[%emt 0:00:12]} 54. a6 {[%emt 0:00:03]} Bb8 {[%emt 0:00:06]} 55. a7 {[%emt 0:00:11]} Bxa7 {[%emt 0:00:02]} 56. Bxa7 {[%emt 0:00:02]} Kg5 {[%emt 0:00:21]} 57. Be3+ {[%emt 0:00:05]} Kf6 {[%emt 0:00:05]} 58. Kxd3 {[%emt 0:00:03]} Ke5 {[%emt 0:00:03]} 59. Kc3 {[%emt 0:00:10]} Kd5 {[%emt 0:00:38]} 60. Kb4 {[%emt 0:00:06]} Kc6 {[%emt 0:00:02]} 61. Ka5 {[%emt 0:01:24]} Kd5 {[%emt 0:00:14]} 62. Kxb5 {[%emt 0:00:04]} Ke4 {[%emt 0:00:09]} 63. Kc5 {[%emt 0:00:08]} Kf3 {[%emt 0:00:04]} 64. Kd5 {[%emt 0:00:07]} f4 {[%emt 0:00:04]} 65. gxf4 {[%emt 0:00:14]} g3 {[%emt 0:00:03]} 66. fxg3 {[%emt 0:00:03]} Kxe3 {[%emt 0:00:10]} 67. f5 {[%emt 0:00:03]} 1-0

[Event "Marshall CC Premier 04-2025"]
[Site "New York"]
[Date "2025.04.07"]
[Round "5.6"]
[White "Marsh, James J"]
[Black "Chen, Derek Li"]
[Result "1-0"]
[Annotator "RC"]
[ECO "E11"]
[WhiteElo "2058"]
[BlackElo "1980"]
[PlyCount "63"]
[EventDate "2025.01.03"]
[EventType "swiss"]
[EventCountry "USA"]
[SourceTitle "playchess.com"]
[Source "ChessBase"]
[SourceQuality "1"]
[TimeControl "5400+30"]

1. d4 {[%emt 0:00:01]} Nf6 {[%emt 0:00:54]} 2. c4 {[%emt 0:00:09]} e6 {[%emt 0:00:18]} 3. Nf3 {[%emt 0:00:09]} Bb4+ {[%emt 0:00:15]} 4. Bd2 {[%emt 0:00:14]} a5 {[%emt 0:00:09]} 5. a3 {[%emt 0:01:56]} Bxd2+ {[%emt 0:00:19]} 6. Qxd2 {[%emt 0:00:10]} d6 {[%emt 0:00:06]} 7. Nc3 {[%emt 0:00:31]} Nbd7 {[%emt 0:02:22]} 8. e4 {[%emt 0:01:13]} e5 {[%emt 0:01:14]} 9. O-O-O {[%emt 0:00:38]} exd4 {[%emt 0:00:23]} 10. Nxd4 {[%emt 0:00:18]} O-O {[%emt 0:04:23]} 11. f3 {[%emt 0:01:10]} Nb6 {[%emt 0:09:19]} 12. Nc2 {[%emt 0:23:29]} Be6 {[%emt 0:04:18]} 13. Ne3 {[%emt 0:00:44]} Qb8 {[%emt 0:10:39]} 14. Kb1 {[%emt 0:02:10]} Rd8 {[%emt 0:02:00]} 15. Be2 {[%emt 0:01:57]} Bd7 {[%emt 0:14:31]} 16. g4 {[%emt 0:07:26]} Na4 {[%emt 0:01:14]} 17. Nf5 {[%emt 0:01:13]} Nxc3+ {[%emt 0:00:43]} 18. Qxc3 {[%emt 0:00:13]} Bxf5 {[%emt 0:00:18]} 19. gxf5 {[%emt 0:01:01]} Kh8 {[%emt 0:02:45]} 20. Rhg1 {[%emt 0:00:41]} Ne8 {[%emt 0:00:31]} 21. f6 {[%emt 0:14:26]} g6 {[%emt 0:00:10]} 22. f4 {[%emt 0:00:56]} Qa7 {[%emt 0:00:39]} 23. Rdf1 {[%emt 0:10:55]} a4 {[%emt 0:01:05]} 24. Rg5 {[%emt 0:01:31]} Qb6 {[%emt 0:01:56]} 25. Bd1 {[%emt 0:05:11]} d5 {[%emt 0:04:11]} 26. e5 {[%emt 0:01:27]} dxc4 {[%emt 0:00:57]} 27. Qxc4 {[%emt 0:02:07]} Rd2 {[%emt 0:00:35]} 28. Bc2 {[%emt 0:01:49]} Qa6 {[%emt 0:10:28]} 29. Qxf7 {[%emt 0:13:26]} Qxf1+ {[%emt 0:00:28]} 30. Ka2 {[%emt 0:00:16]} Nxf6 {[%emt 0:00:02]} 31. exf6 {[%emt 0:03:46]} Rg8 {[%emt 0:01:09]} 32. Rh5 {[%emt 0:00:49]} 1-0

[Event "Marshall CC Premier 04-2025"]
[Site "New York"]
[Date "2025.04.07"]
[Round "5.7"]
[White "Cheung, Kyle"]
[Black "Ling, Chenxuan"]
[Result "0-1"]
[Annotator "RC"]
[ECO "B33"]
[WhiteElo "1934"]
[BlackElo "2119"]
[PlyCount "70"]
[EventDate "2025.01.03"]
[EventType "swiss"]
[EventCountry "USA"]
[SourceTitle "playchess.com"]
[Source "ChessBase"]
[SourceQuality "1"]
[TimeControl "5400+30"]

1. e4 {[%emt 0:01:29]} c5 {[%emt 0:03:09]} 2. Nf3 {[%emt 0:00:02]} Nc6 {[%emt 0:00:26]} 3. d4 {[%emt 0:00:02]} cxd4 {[%emt 0:00:09]} 4. Nxd4 {[%emt 0:00:03]} Nf6 {[%emt 0:00:02]} 5. Nc3 {[%emt 0:00:02]} e5 {[%emt 0:00:17]} 6. Ndb5 {[%emt 0:00:09]} d6 {[%emt 0:00:11]} 7. Bg5 {[%emt 0:00:03]} a6 {[%emt 0:00:09]} 8. Na3 {[%emt 0:00:06]} b5 {[%emt 0:00:08]} 9. Nd5 {[%emt 0:00:37]} Be7 {[%emt 0:00:14]} 10. Bxf6 {[%emt 0:00:13]} Bxf6 {[%emt 0:00:07]} 11. c3 {[%emt 0:00:03]} Bg5 {[%emt 0:00:08]} 12. g3 {[%emt 0:00:20]} O-O {[%emt 0:00:35]} 13. h4 {[%emt 0:00:03]} Bh6 {[%emt 0:00:05]} 14. Bh3 {[%emt 0:00:04]} Be6 {[%emt 0:00:13]} 15. Nc2 {[%emt 0:04:01]} Ne7 {[%emt 0:04:33]} 16. Nce3 {[%emt 0:03:30]} Rc8 {[%emt 0:02:48]} 17. Qd3 {[%emt 0:02:21]} Nxd5 {[%emt 1:25:46]} 18. exd5 {[%emt 0:04:10]} Bxh3 {[%emt 0:00:00]} 19. Rxh3 {[%emt 0:00:02]} Bxe3 {[%emt 0:01:00]} 20. fxe3 {[%emt 0:04:06]} Qd7 {[%emt 0:00:00]} 21. Rh2 {[%emt 0:08:04]} Qg4 {[%emt 0:00:00]} 22. Qe2 {[%emt 0:06:02]} Qxg3+ {[%emt 0:00:00]} 23. Kd2 {[%emt 0:00:22]} e4 {[%emt 0:00:00]} 24. Rg2 {[%emt 0:00:48]} Qe5 {[%emt 0:00:00]} 25. Kc2 {[%emt 0:06:03]} Qxd5 {[%emt 0:00:00]} 26. Rd1 {[%emt 0:00:48]} Qxa2 {[%emt 0:00:00]} 27. Qg4 {[%emt 0:01:24]} g6 {[%emt 0:00:00]} 28. h5 {[%emt 0:01:46]} b4 {[%emt 0:00:00]} 29. Qxe4 {[%emt 0:06:07]} Rxc3+ {[%emt 0:00:00]} 30. Kd2 {[%emt 0:00:03]} Qxb2+ {[%emt 0:00:00]} 31. Ke1 {[%emt 0:00:01]} Rxe3+ {[%emt 0:00:00]} 32. Qxe3 {[%emt 0:00:21]} Qxg2 {[%emt 0:00:00]} 33. h6 {[%emt 0:02:01]} Qc6 {[%emt 0:00:00]} 34. Kf2 {[%emt 0:01:00]} Qc5 {[%emt 0:00:00]} 35. Rd4 {[%emt 0:00:14]} b3 {[%emt 0:00:00]} 0-1